[Event "European Womens-ch 2025"]
[Site "Rhodes"]
[Date "2025.04.04"]
[Round "5.26"]
[White "Rodshtein, Tereza"]
[Black "Stefanova, Antoaneta"]
[Result "1-0"]
[Annotator "RC"]
[ECO "B12"]
[WhiteElo "2171"]
[BlackElo "2426"]
[PlyCount "57"]
[EventDate "2025.03.29"]
[EventType "swiss"]
[EventCountry "GRE"]
[SourceTitle "playchess.com"]
[Source "ChessBase"]
[SourceQuality "1"]
[TimeControl "40/5400+30:1800+30"]

1. e4 {[%emt 0:00:04]} c6 {[%emt 0:03:54]} 2. d4 {[%emt 0:00:20]} d5 {[%emt 0:00:06]} 3. Nd2 {[%emt 0:01:01]} Qc7 {[%emt 0:00:36]} 4. Bd3 {[%emt 0:03:26]} g6 {[%emt 0:20:25]} 5. c3 {[%emt 0:02:55]} Bg7 {[%emt 0:05:40]} 6. Qe2 {[%emt 0:08:45]} Nh6 {[%emt 0:09:48]} 7. h3 {[%emt 0:06:14]} O-O {[%emt 0:08:03]} 8. Ngf3 {[%emt 0:00:41]} f6 {[%emt 0:07:58]} 9. O-O {[%emt 0:05:09]} e5 {[%emt 0:01:02]} 10. dxe5 {[%emt 0:07:38]} fxe5 {[%emt 0:00:01]} 11. Ng5 {[%emt 0:00:23]} Qd6 {[%emt 0:21:39]} 12. Ndf3 {[%emt 0:11:35]} Nd7 {[%emt 0:00:37]} 13. Rd1 {[%emt 0:00:35]} Kh8 {[%emt 0:11:14]} 14. a4 {[%emt 0:07:10]} d4 {[%emt 0:03:07]} 15. Bc4 {[%emt 0:00:48]} Re8 {[%emt 0:01:38]} 16. b4 {[%emt 0:04:14]} a5 {[%emt 0:01:47]} 17. Bb2 {[%emt 0:03:20]} axb4 {[%emt 0:00:22]} 18. cxd4 {[%emt 0:01:55]} Nb6 {[%emt 0:00:53]} 19. dxe5 {[%emt 0:04:33]} Qe7 {[%emt 0:00:22]} 20. Bb3 {[%emt 0:00:27]} Ra5 {[%emt 0:00:26]} 21. Rd6 {[%emt 0:07:51]} Na8 {[%emt 0:00:20]} 22. Rad1 {[%emt 0:01:11]} Nc7 {[%emt 0:00:18]} 23. Qd2 {[%emt 0:04:05]} Ra8 {[%emt 0:01:02]} 24. e6 {[%emt 0:01:19]} b5 {[%emt 0:00:33]} 25. Nf7+ {[%emt 0:01:32]} Nxf7 {[%emt 0:00:11]} 26. exf7 {[%emt 0:00:03]} Rf8 {[%emt 0:00:10]} 27. Qd4 {[%emt 0:02:59]} Rxf7 {[%emt 0:00:09]} 28. Bxf7 {[%emt 0:00:26]} Ne8 {[%emt 0:00:22]} 29. Rd8 {[%emt 0:01:02]} 1-0

[Event "European Womens-ch 2025"]
[Site "Rhodes"]
[Date "2025.04.04"]
[Round "5.27"]
[White "Fataliyeva, Ulviyya"]
[Black "Bochnickova, Simona"]
[Result "1-0"]
[Annotator "RC"]
[ECO "A14"]
[WhiteElo "2387"]
[BlackElo "2167"]
[PlyCount "63"]
[EventDate "2025.03.29"]
[EventType "swiss"]
[EventCountry "GRE"]
[SourceTitle "playchess.com"]
[Source "ChessBase"]
[SourceQuality "1"]
[TimeControl "40/5400+30:1800+30"]

1. Nf3 {[%emt 0:00:49]} d5 {[%emt 0:00:12]} 2. c4 {[%emt 0:00:06]} e6 {[%emt 0:00:08]} 3. g3 {[%emt 0:00:09]} Nf6 {[%emt 0:00:21]} 4. Bg2 {[%emt 0:00:07]} Be7 {[%emt 0:01:25]} 5. d4 {[%emt 0:00:09]} O-O {[%emt 0:00:10]} 6. Qc2 {[%emt 0:00:22]} c5 {[%emt 0:01:59]} 7. O-O {[%emt 0:00:13]} b6 {[%emt 0:01:47]} 8. cxd5 {[%emt 0:03:56]} exd5 {[%emt 0:00:20]} 9. Nc3 {[%emt 0:00:46]} Nc6 {[%emt 0:04:43]} 10. dxc5 {[%emt 0:04:01]} bxc5 {[%emt 0:00:14]} 11. Bg5 {[%emt 0:01:29]} Be6 {[%emt 0:06:07]} 12. Rfd1 {[%emt 0:02:59]} Qb6 {[%emt 0:13:45]} 13. Rac1 {[%emt 0:11:43]} Rac8 {[%emt 0:01:39]} 14. Qd2 {[%emt 0:09:15]} Rfd8 {[%emt 0:07:31]} 15. Bxf6 {[%emt 0:00:50]} Bxf6 {[%emt 0:00:05]} 16. Na4 {[%emt 0:03:13]} Qb4 {[%emt 0:10:31]} 17. Nxc5 {[%emt 0:01:26]} Bf5 {[%emt 0:00:32]} 18. Nb3 {[%emt 0:07:28]} Qa4 {[%emt 0:03:03]} 19. Ra1 {[%emt 0:02:47]} Nb4 {[%emt 0:04:55]} 20. Nbd4 {[%emt 0:06:55]} Bg6 {[%emt 0:02:00]} 21. Bh3 {[%emt 0:02:07]} Rc2 {[%emt 0:08:34]} 22. Nxc2 {[%emt 0:01:46]} Nxc2 {[%emt 0:00:05]} 23. b3 {[%emt 0:03:28]} Qa6 {[%emt 0:02:31]} 24. Rac1 {[%emt 0:00:29]} Na3 {[%emt 0:08:46]} 25. Rc5 {[%emt 0:01:34]} Be4 {[%emt 0:01:03]} 26. Ra5 {[%emt 0:02:23]} Qd6 {[%emt 0:00:18]} 27. Ng5 {[%emt 0:02:02]} Bxg5 {[%emt 0:02:53]} 28. Qxg5 {[%emt 0:00:19]} Re8 {[%emt 0:03:51]} 29. Bg2 {[%emt 0:02:26]} Qb4 {[%emt 0:01:59]} 30. Ra4 {[%emt 0:01:22]} Qf8 {[%emt 0:00:13]} 31. Bxe4 {[%emt 0:00:44]} dxe4 {[%emt 0:00:04]} 32. Qa5 {[%emt 0:01:01]} 1-0

[Event "European Womens-ch 2025"]
[Site "Rhodes"]
[Date "2025.04.04"]
[Round "5.28"]
[White "Guichard, Pauline"]
[Black "Eric, Jovana"]
[Result "1-0"]
[Annotator "RC"]
[ECO "D46"]
[WhiteElo "2355"]
[BlackElo "2147"]
[PlyCount "89"]
[EventDate "2025.03.29"]
[EventType "swiss"]
[EventCountry "GRE"]
[SourceTitle "playchess.com"]
[Source "ChessBase"]
[SourceQuality "1"]
[TimeControl "40/5400+30:1800+30"]

1. d4 {[%emt 0:00:15]} d5 {[%emt 0:00:09]} 2. c4 {[%emt 0:00:16]} c6 {[%emt 0:00:11]} 3. Nf3 {[%emt 0:00:14]} Nf6 {[%emt 0:00:12]} 4. e3 {[%emt 0:00:14]} e6 {[%emt 0:00:37]} 5. Bd3 {[%emt 0:01:23]} Nbd7 {[%emt 0:01:52]} 6. O-O {[%emt 0:00:26]} Bd6 {[%emt 0:01:44]} 7. Nc3 {[%emt 0:01:13]} O-O {[%emt 0:03:10]} 8. e4 {[%emt 0:00:31]} dxe4 {[%emt 0:03:28]} 9. Nxe4 {[%emt 0:00:10]} Nxe4 {[%emt 0:00:14]} 10. Bxe4 {[%emt 0:00:07]} h6 {[%emt 0:00:23]} 11. Bc2 {[%emt 0:06:34]} c5 {[%emt 0:05:26]} 12. Qd3 {[%emt 0:13:52]} f5 {[%emt 0:06:22]} 13. Re1 {[%emt 0:19:02]} cxd4 {[%emt 0:07:38]} 14. Qxd4 {[%emt 0:02:34]} Bc5 {[%emt 0:04:59]} 15. Qc3 {[%emt 0:03:48]} Qb6 {[%emt 0:08:56]} 16. Re2 {[%emt 0:00:34]} Nf6 {[%emt 0:03:10]} 17. Be3 {[%emt 0:07:07]} Bd7 {[%emt 0:07:18]} 18. Ne5 {[%emt 0:07:05]} Be8 {[%emt 0:03:17]} 19. Bxc5 {[%emt 0:01:04]} Qxc5 {[%emt 0:00:06]} 20. Rae1 {[%emt 0:00:17]} Rc8 {[%emt 0:04:27]} 21. b3 {[%emt 0:02:01]} Qc7 {[%emt 0:06:12]} 22. Qe3 {[%emt 0:01:46]} Bh5 {[%emt 0:03:11]} 23. f3 {[%emt 0:03:47]} b6 {[%emt 0:00:43]} 24. Kh1 {[%emt 0:08:13]} Rcd8 {[%emt 0:03:58]} 25. Qf4 {[%emt 0:05:17]} Bf7 {[%emt 0:04:55]} 26. Qc1 {[%emt 0:00:46]} Bh5 {[%emt 0:00:45]} 27. Nd3 {[%emt 0:01:07]} Rd4 {[%emt 0:07:46]} 28. Rxe6 {[%emt 0:02:21]} Rh4 {[%emt 0:01:59]} 29. Ne5 {[%emt 0:00:23]} Nd7 {[%emt 0:02:52]} 30. Qd2 {[%emt 0:06:21]} Nxe5 {[%emt 0:04:34]} 31. R6xe5 {[%emt 0:00:05]} Bg6 {[%emt 0:02:20]} 32. Qf2 {[%emt 0:02:40]} Qd8 {[%emt 0:01:02]} 33. Re7 {[%emt 0:02:09]} Rd4 {[%emt 0:00:45]} 34. Qg3 {[%emt 0:00:31]} Rd6 {[%emt 0:01:28]} 35. h4 {[%emt 0:01:39]} h5 {[%emt 0:01:08]} 36. b4 {[%emt 0:00:40]} Kh7 {[%emt 0:00:36]} 37. Qe5 {[%emt 0:01:23]} Rff6 {[%emt 0:00:17]} 38. c5 {[%emt 0:00:24]} bxc5 {[%emt 0:00:09]} 39. bxc5 {[%emt 0:00:04]} Ra6 {[%emt 0:00:41]} 40. Bb3 {[%emt 0:00:00]} Qd2 {[%emt 0:00:00]} 41. Qb8 {[%emt 0:15:18]} Bf7 {[%emt 0:09:44]} 42. Rd1 {[%emt 0:01:09]} Qb2 {[%emt 0:02:04]} 43. Rd8 {[%emt 0:04:39]} Qf2 {[%emt 0:10:39]} 44. Rh8+ {[%emt 0:00:34]} Kg6 {[%emt 0:00:08]} 45. Qf4 {[%emt 0:00:11]} 1-0

[Event "European Womens-ch 2025"]
[Site "Rhodes"]
[Date "2025.04.04"]
[Round "5.29"]
[White "Abdinova, Narmin"]
[Black "Sliwicka, Alicja"]
[Result "1/2-1/2"]
[Annotator "RC"]
[ECO "D75"]
[WhiteElo "2165"]
[BlackElo "2342"]
[PlyCount "110"]
[EventDate "2025.03.29"]
[EventType "swiss"]
[EventCountry "GRE"]
[SourceTitle "playchess.com"]
[Source "ChessBase"]
[SourceQuality "1"]
[TimeControl "40/5400+30:1800+30"]

1. d4 {[%emt 0:00:59]} Nf6 {[%emt 0:00:04]} 2. c4 {[%emt 0:00:43]} g6 {[%emt 0:00:08]} 3. Nc3 {[%emt 0:00:35]} Bg7 {[%emt 0:00:12]} 4. g3 {[%emt 0:00:09]} d5 {[%emt 0:00:14]} 5. cxd5 {[%emt 0:00:11]} Nxd5 {[%emt 0:00:06]} 6. Bg2 {[%emt 0:00:02]} Nxc3 {[%emt 0:00:17]} 7. bxc3 {[%emt 0:00:05]} c5 {[%emt 0:00:24]} 8. Nf3 {[%emt 0:00:03]} Nc6 {[%emt 0:00:38]} 9. O-O {[%emt 0:00:07]} O-O {[%emt 0:05:55]} 10. d5 {[%emt 0:00:14]} Na5 {[%emt 0:00:59]} 11. e4 {[%emt 0:01:00]} b5 {[%emt 0:07:45]} 12. Rb1 {[%emt 0:10:39]} Nc4 {[%emt 0:04:46]} 13. Rxb5 {[%emt 0:29:57]} Nd6 {[%emt 0:01:13]} 14. Rxc5 Nxe4 {[%emt 0:01:57]} 15. Rc4 {[%emt 0:07:09]} Nxc3 {[%emt 0:04:38]} 16. Qb3 {[%emt 0:02:01]} Nxd5 {[%emt 0:07:43]} 17. Nd4 {[%emt 0:17:49]} e6 {[%emt 0:13:15]} 18. Rd1 {[%emt 0:00:32]} Ba6 {[%emt 0:06:13]} 19. Ra4 {[%emt 0:04:31]} Qb6 {[%emt 0:02:22]} 20. Ba3 {[%emt 0:12:35]} Rfc8 {[%emt 0:01:54]} 21. Bxd5 {[%emt 0:01:29]} exd5 {[%emt 0:00:20]} 22. Rb4 {[%emt 0:00:03]} Qc7 {[%emt 0:09:32]} 23. Qxd5 {[%emt 0:06:30]} Rd8 {[%emt 0:00:57]} 24. Qf3 {[%emt 0:01:37]} Qa5 {[%emt 0:01:18]} 25. Kg2 {[%emt 0:03:07]} Re8 {[%emt 0:01:20]} 26. Nc6 {[%emt 0:00:45]} Qc7 {[%emt 0:00:17]} 27. Rdb1 {[%emt 0:00:33]} Rac8 {[%emt 0:02:14]} 28. Nd4 {[%emt 0:00:27]} Rcd8 {[%emt 0:01:34]} 29. Ra4 {[%emt 0:00:29]} Bc8 {[%emt 0:09:01]} 30. Nc6 {[%emt 0:00:21]} Bf5 {[%emt 0:04:24]} 31. Rb3 {[%emt 0:00:45]} Rc8 {[%emt 0:00:57]} 32. Nxa7 {[%emt 0:00:22]} Qd7 {[%emt 0:00:53]} 33. g4 {[%emt 0:00:39]} Be6 {[%emt 0:01:42]} 34. Nxc8 {[%emt 0:00:23]} Qxa4 {[%emt 0:03:24]} 35. Nd6 {[%emt 0:00:31]} Rd8 {[%emt 0:00:49]} 36. Re3 {[%emt 0:00:30]} Qd7 {[%emt 0:00:44]} 37. h3 {[%emt 0:00:30]} Qc7 {[%emt 0:01:55]} 38. Ne4 {[%emt 0:00:29]} Be5 {[%emt 0:02:20]} 39. Rd3 {[%emt 0:00:30]} Rxd3 {[%emt 0:01:50]} 40. Qxd3 {[%emt 0:00:00]} Kg7 {[%emt 0:00:00]} 41. Bd6 {[%emt 0:13:14]} Bxd6 {[%emt 0:03:12]} 42. Nxd6 {[%emt 0:00:29]} Qc6+ {[%emt 0:01:41]} 43. f3 {[%emt 0:00:08]} Bd5 {[%emt 0:08:45]} 44. Ne8+ {[%emt 0:03:35]} Qxe8 {[%emt 0:04:02]} 45. Qxd5 {[%emt 0:00:48]} Qe2+ {[%emt 0:00:05]} 46. Kg3 {[%emt 0:00:05]} Qe1+ {[%emt 0:02:32]} 47. Kf4 {[%emt 0:00:04]} f6 {[%emt 0:00:54]} 48. Qb7+ {[%emt 0:03:43]} Kf8 {[%emt 0:00:25]} 49. Qb2 {[%emt 0:02:30]} Kf7 {[%emt 0:01:07]} 50. Qb7+ {[%emt 0:00:44]} Kf8 {[%emt 0:00:07]} 51. Qb8+ {[%emt 0:01:31]} Kf7 {[%emt 0:00:09]} 52. Qc7+ {[%emt 0:01:36]} Kf8 {[%emt 0:00:34]} 53. Qd6+ {[%emt 0:01:33]} Kf7 {[%emt 0:00:19]} 54. Qd5+ {[%emt 0:00:21]} Kg7 {[%emt 0:00:17]} 55. Qb7+ {[%emt 0:01:16]} Kf8 {[%emt 0:00:30]} 1/2-1/2

[Event "European Womens-ch 2025"]
[Site "Rhodes"]
[Date "2025.04.04"]
[Round "5.30"]
[White "Yildiz, Elif Zeren"]
[Black "Zawadzka, Jolanta"]
[Result "1/2-1/2"]
[Annotator "RC"]
[ECO "B47"]
[WhiteElo "2160"]
[BlackElo "2326"]
[PlyCount "102"]
[EventDate "2025.03.29"]
[EventType "swiss"]
[EventCountry "GRE"]
[SourceTitle "playchess.com"]
[Source "ChessBase"]
[SourceQuality "1"]
[TimeControl "40/5400+30:1800+30"]

1. e4 {[%emt 0:00:05]} c5 {[%emt 0:00:07]} 2. Nf3 {[%emt 0:00:06]} e6 {[%emt 0:00:05]} 3. d4 {[%emt 0:00:23]} cxd4 {[%emt 0:00:06]} 4. Nxd4 {[%emt 0:00:04]} Nc6 {[%emt 0:00:05]} 5. Nc3 {[%emt 0:00:17]} Qc7 {[%emt 0:00:11]} 6. Qd3 {[%emt 0:00:07]} Nf6 {[%emt 0:01:53]} 7. Nxc6 {[%emt 0:00:07]} dxc6 {[%emt 0:04:11]} 8. Qg3 {[%emt 0:00:06]} Qxg3 {[%emt 0:06:02]} 9. hxg3 {[%emt 0:00:03]} e5 {[%emt 0:00:06]} 10. f3 {[%emt 0:05:36]} Be6 {[%emt 0:01:38]} 11. Be3 {[%emt 0:02:47]} Bb4 {[%emt 0:04:19]} 12. Kf2 {[%emt 0:05:40]} Bxc3 {[%emt 0:07:14]} 13. bxc3 {[%emt 0:00:03]} Nd7 {[%emt 0:00:07]} 14. g4 {[%emt 0:05:17]} O-O {[%emt 0:14:55]} 15. a4 {[%emt 0:04:57]} Rfc8 {[%emt 0:04:44]} 16. Rb1 {[%emt 0:11:00]} b6 {[%emt 0:02:29]} 17. Ba6 {[%emt 0:01:46]} Rc7 {[%emt 0:00:29]} 18. Rhd1 {[%emt 0:06:46]} h6 {[%emt 0:06:18]} 19. Be2 {[%emt 0:05:25]} f6 {[%emt 0:04:08]} 20. g3 {[%emt 0:05:51]} c5 {[%emt 0:05:25]} 21. a5 {[%emt 0:10:18]} Kf7 {[%emt 0:04:13]} 22. Bb5 {[%emt 0:03:28]} bxa5 {[%emt 0:05:36]} 23. Ra1 {[%emt 0:00:34]} Nb6 {[%emt 0:10:08]} 24. Rxa5 {[%emt 0:00:06]} Rb8 {[%emt 0:01:00]} 25. Rda1 {[%emt 0:04:38]} Nc8 {[%emt 0:00:36]} 26. c4 {[%emt 0:01:25]} Rb6 {[%emt 0:02:41]} 27. Ke2 {[%emt 0:04:09]} Rd6 {[%emt 0:02:43]} 28. Ba6 {[%emt 0:03:36]} Rxa6 {[%emt 0:00:25]} 29. Rxa6 {[%emt 0:00:01]} Bxc4+ {[%emt 0:00:06]} 30. Kd2 {[%emt 0:00:03]} Bxa6 {[%emt 0:00:06]} 31. Rxa6 {[%emt 0:00:11]} Ke7 {[%emt 0:01:50]} 32. Kc3 {[%emt 0:00:19]} Nd6 {[%emt 0:00:09]} 33. Ra5 {[%emt 0:01:51]} Kd7 {[%emt 0:05:30]} 34. Rxc5 {[%emt 0:03:49]} Rxc5+ {[%emt 0:01:48]} 35. Bxc5 {[%emt 0:00:01]} Kc6 {[%emt 0:00:06]} 36. Bb4 {[%emt 0:01:02]} Nb5+ {[%emt 0:00:23]} 37. Kb2 {[%emt 0:00:06]} Nd4 {[%emt 0:00:10]} 38. Bf8 {[%emt 0:01:20]} Ne6 {[%emt 0:00:08]} 39. Bb4 {[%emt 0:01:21]} Kb5 {[%emt 0:00:21]} 40. Bd6 {[%emt 0:00:00]} Kc4 {[%emt 0:00:00]} 41. f4 {[%emt 0:04:32]} Kd4 {[%emt 0:20:56]} 42. f5 {[%emt 0:00:05]} Ng5 {[%emt 0:00:04]} 43. Bf8 {[%emt 0:00:48]} Nxe4 {[%emt 0:04:29]} 44. Bxg7 {[%emt 0:00:06]} a6 {[%emt 0:01:50]} 45. Kc1 {[%emt 0:03:45]} Kc4 {[%emt 0:01:06]} 46. Kb2 {[%emt 0:00:55]} Kd5 {[%emt 0:04:14]} 47. Kb3 {[%emt 0:06:45]} Kd6 {[%emt 0:00:10]} 48. Kc4 {[%emt 0:03:04]} Nf2 {[%emt 0:00:18]} 49. Bxh6 {[%emt 0:00:43]} Nxg4 {[%emt 0:00:08]} 50. Bf8+ {[%emt 0:00:07]} Kc6 {[%emt 0:00:16]} 51. Kd3 {[%emt 0:00:13]} a5 {[%emt 0:03:41]} 1/2-1/2

[Event "European Womens-ch 2025"]
[Site "Rhodes"]
[Date "2025.04.04"]
[Round "5.31"]
[White "Doluhanova, Evgeniya"]
[Black "Chelushkina, Irina"]
[Result "1-0"]
[Annotator "RC"]
[ECO "A06"]
[WhiteElo "2287"]
[BlackElo "2134"]
[PlyCount "119"]
[EventDate "2025.03.29"]
[EventType "swiss"]
[EventCountry "GRE"]
[SourceTitle "playchess.com"]
[Source "ChessBase"]
[SourceQuality "1"]
[TimeControl "40/5400+30:1800+30"]

1. Nf3 {[%emt 0:00:46]} d5 {[%emt 0:01:00]} 2. e3 {[%emt 0:00:12]} Nf6 {[%emt 0:03:40]} 3. c4 {[%emt 0:00:43]} a6 {[%emt 0:01:00]} 4. b3 {[%emt 0:01:01]} c5 {[%emt 0:00:13]} 5. d4 {[%emt 0:01:03]} cxd4 {[%emt 0:02:24]} 6. exd4 {[%emt 0:02:58]} Nc6 {[%emt 0:00:42]} 7. Be2 {[%emt 0:00:35]} g6 {[%emt 0:02:58]} 8. O-O {[%emt 0:09:39]} Bg7 {[%emt 0:00:03]} 9. Nc3 {[%emt 0:00:21]} O-O {[%emt 0:00:15]} 10. h3 {[%emt 0:04:06]} Ne4 {[%emt 0:18:47]} 11. Bb2 {[%emt 0:02:52]} Nxc3 {[%emt 0:03:38]} 12. Bxc3 {[%emt 0:00:10]} a5 {[%emt 0:00:31]} 13. Rc1 {[%emt 0:02:44]} Be6 {[%emt 0:03:44]} 14. Qd2 {[%emt 0:01:20]} h6 {[%emt 0:01:35]} 15. Rfe1 {[%emt 0:10:21]} Qd7 {[%emt 0:04:37]} 16. c5 {[%emt 0:01:51]} b6 {[%emt 0:09:59]} 17. cxb6 {[%emt 0:04:21]} Rfb8 {[%emt 0:06:54]} 18. Bb5 {[%emt 0:10:54]} Rxb6 {[%emt 0:00:04]} 19. Bxc6 {[%emt 0:00:20]} Rxc6 {[%emt 0:37:56]} 20. Bxa5 {[%emt 0:00:24]} Rca6 {[%emt 0:00:00]} 21. b4 {[%emt 0:03:07]} Qa4 {[%emt 0:00:00]} 22. Rc7 {[%emt 0:02:46]} Bf8 {[%emt 0:00:00]} 23. Ne5 {[%emt 0:01:23]} Kh7 {[%emt 0:00:00]} 24. Nd3 {[%emt 0:06:43]} Rxa5 {[%emt 0:00:00]} 25. bxa5 {[%emt 0:00:52]} Qxd4 {[%emt 0:00:00]} 26. Rd1 {[%emt 0:01:14]} Bf5 {[%emt 0:00:00]} 27. Qb4 {[%emt 0:06:38]} Qf6 {[%emt 0:00:00]} 28. Qb6 {[%emt 0:10:08]} Qg5 {[%emt 0:00:00]} 29. Kf1 {[%emt 0:07:44]} Qh5 {[%emt 0:00:00]} 30. f3 {[%emt 0:03:35]} Qh4 {[%emt 0:00:00]} 31. Nf2 {[%emt 0:00:59]} Qa4 {[%emt 0:00:00]} 32. g4 {[%emt 0:02:32]} Be6 {[%emt 0:00:00]} 33. Re1 {[%emt 0:01:09]} Qxa5 {[%emt 0:00:00]} 34. Qxa5 {[%emt 0:00:11]} Rxa5 {[%emt 0:00:00]} 35. Nd3 {[%emt 0:01:13]} d4 {[%emt 0:00:00]} 36. Re4 {[%emt 0:00:44]} Bg7 {[%emt 0:00:00]} 37. Rxe6 {[%emt 0:00:40]} fxe6 {[%emt 0:00:00]} 38. Rxe7 {[%emt 0:00:03]} Rxa2 {[%emt 0:00:00]} 39. Rxe6 {[%emt 0:00:39]} Rd2 {[%emt 0:01:32]} 40. Nf4 {[%emt 0:00:00]} d3 {[%emt 0:00:00]} 41. Rd6 {[%emt 0:01:04]} Be5 {[%emt 0:05:14]} 42. Rd7+ {[%emt 0:00:44]} Kg8 {[%emt 0:00:01]} 43. Nxd3 {[%emt 0:01:29]} Bg3 {[%emt 0:01:05]} 44. Ne5 {[%emt 0:06:00]} Rxd7 {[%emt 0:00:25]} 45. Nxd7 {[%emt 0:00:05]} Kf7 {[%emt 0:00:22]} 46. Ke2 {[%emt 0:00:04]} Ke6 {[%emt 0:00:58]} 47. Nc5+ {[%emt 0:00:10]} Ke5 {[%emt 0:03:04]} 48. Ke3 {[%emt 0:02:39]} Bf4+ {[%emt 0:00:34]} 49. Kf2 {[%emt 0:00:59]} Kd5 {[%emt 0:01:03]} 50. Nd3 {[%emt 0:00:57]} Bc7 {[%emt 0:02:26]} 51. Ke3 {[%emt 0:03:58]} Bb6+ {[%emt 0:03:18]} 52. Ke2 {[%emt 0:01:02]} Bc7 {[%emt 0:00:11]} 53. Nb4+ {[%emt 0:00:14]} Ke6 {[%emt 0:05:32]} 54. Ke3 {[%emt 0:00:29]} h5 {[%emt 0:00:46]} 55. gxh5 {[%emt 0:01:16]} gxh5 {[%emt 0:00:01]} 56. Ke4 {[%emt 0:00:08]} Ba5 {[%emt 0:06:08]} 57. Nd5 {[%emt 0:00:18]} Be1 {[%emt 0:00:23]} 58. Nf4+ {[%emt 0:00:50]} Kf6 {[%emt 0:00:01]} 59. Nxh5+ {[%emt 0:18:33]} Kg5 60. Nf4 {[%emt 0:00:00]} 1-0

[Event "European Womens-ch 2025"]
[Site "Rhodes"]
[Date "2025.04.04"]
[Round "5.32"]
[White "Cornileau, Juliette"]
[Black "Mkrtchyan, Mariam"]
[Result "0-1"]
[Annotator "RC"]
[ECO "C89"]
[WhiteElo "2130"]
[BlackElo "2282"]
[PlyCount "62"]
[EventDate "2025.03.29"]
[EventType "swiss"]
[EventCountry "GRE"]
[SourceTitle "playchess.com"]
[Source "ChessBase"]
[SourceQuality "1"]
[TimeControl "40/5400+30:1800+30"]

1. e4 {[%emt 0:00:05]} e5 {[%emt 0:01:59]} 2. Nf3 {[%emt 0:00:08]} Nc6 {[%emt 0:00:06]} 3. Bb5 {[%emt 0:00:07]} a6 {[%emt 0:00:11]} 4. Ba4 {[%emt 0:00:17]} Nf6 {[%emt 0:00:11]} 5. O-O {[%emt 0:00:20]} Be7 {[%emt 0:00:28]} 6. Re1 {[%emt 0:00:25]} b5 {[%emt 0:00:05]} 7. Bb3 {[%emt 0:00:04]} O-O {[%emt 0:00:04]} 8. c3 {[%emt 0:02:50]} d5 {[%emt 0:01:07]} 9. exd5 {[%emt 0:01:54]} Nxd5 {[%emt 0:00:01]} 10. a4 {[%emt 0:25:33]} Be6 {[%emt 0:10:21]} 11. d3 {[%emt 0:08:29]} Qd6 {[%emt 0:16:07]} 12. Na3 {[%emt 0:03:43]} Rab8 {[%emt 0:05:57]} 13. axb5 {[%emt 0:01:55]} axb5 {[%emt 0:00:05]} 14. Bc2 {[%emt 0:08:14]} Qd8 {[%emt 0:24:43]} 15. d4 {[%emt 0:06:55]} exd4 {[%emt 0:02:13]} 16. Qd3 {[%emt 0:02:43]} g6 {[%emt 0:03:47]} 17. Nxd4 {[%emt 0:00:24]} Nxd4 {[%emt 0:00:13]} 18. Qxd4 {[%emt 0:00:14]} Bf6 {[%emt 0:01:44]} 19. Qc5 {[%emt 0:06:02]} b4 {[%emt 0:00:22]} 20. cxb4 {[%emt 0:00:42]} Be7 {[%emt 0:02:02]} 21. Qd4 {[%emt 0:01:43]} Nxb4 {[%emt 0:00:29]} 22. Qe3 {[%emt 0:06:45]} Bf6 {[%emt 0:02:20]} 23. Be4 {[%emt 0:02:02]} Re8 {[%emt 0:02:02]} 24. Bd2 {[%emt 0:10:55]} Bf5 {[%emt 0:03:55]} 25. Bxb4 {[%emt 0:05:25]} Rxe4 {[%emt 0:00:42]} 26. Qxe4 {[%emt 0:03:00]} Bxe4 {[%emt 0:00:04]} 27. Rxe4 {[%emt 0:00:10]} Bxb2 {[%emt 0:00:17]} 28. Rae1 {[%emt 0:01:02]} Kg7 {[%emt 0:02:16]} 29. Bc5 {[%emt 0:01:06]} Qd5 {[%emt 0:01:10]} 30. Ba7 {[%emt 0:01:33]} Rb7 {[%emt 0:02:56]} 31. Nc4 {[%emt 0:00:27]} Bc3 {[%emt 0:00:24]} 0-1

[Event "European Womens-ch 2025"]
[Site "Rhodes"]
[Date "2025.04.04"]
[Round "5.33"]
[White "Nadzamova, Viktoria"]
[Black "Avramidou, Anastasia"]
[Result "0-1"]
[Annotator "RC"]
[ECO "B23"]
[WhiteElo "2122"]
[BlackElo "2275"]
[PlyCount "96"]
[EventDate "2025.03.29"]
[EventType "swiss"]
[EventCountry "GRE"]
[SourceTitle "playchess.com"]
[Source "ChessBase"]
[SourceQuality "1"]
[TimeControl "40/5400+30:1800+30"]

1. e4 {[%emt 0:00:07]} c5 {[%emt 0:00:09]} 2. Nc3 {[%emt 0:00:59]} a6 {[%emt 0:02:24]} 3. f4 {[%emt 0:01:43]} e6 {[%emt 0:05:02]} 4. Nf3 {[%emt 0:00:25]} d5 {[%emt 0:00:26]} 5. e5 {[%emt 0:01:22]} Nc6 {[%emt 0:02:42]} 6. Be2 {[%emt 0:01:10]} Nh6 {[%emt 0:10:50]} 7. O-O {[%emt 0:02:10]} Nf5 {[%emt 0:00:35]} 8. g4 {[%emt 0:03:32]} Nfd4 {[%emt 0:04:21]} 9. Nb1 {[%emt 0:04:36]} f6 {[%emt 0:09:06]} 10. Nxd4 {[%emt 0:03:39]} Nxd4 {[%emt 0:04:08]} 11. c3 {[%emt 0:01:33]} Nc6 {[%emt 0:08:20]} 12. d4 {[%emt 0:04:51]} Qb6 {[%emt 0:00:27]} 13. exf6 {[%emt 0:00:11]} gxf6 {[%emt 0:01:48]} 14. g5 {[%emt 0:00:52]} cxd4 {[%emt 0:03:10]} 15. Bh5+ {[%emt 0:00:21]} Kd8 {[%emt 0:00:04]} 16. Kh1 {[%emt 0:00:22]} f5 17. cxd4 {[%emt 0:03:18]} Bg7 {[%emt 0:10:31]} 18. Nc3 {[%emt 0:02:14]} Qxd4 {[%emt 0:07:19]} 19. Qf3 {[%emt 0:02:12]} Qc4 {[%emt 0:01:20]} 20. Bd2 {[%emt 0:01:18]} Bd7 {[%emt 0:08:51]} 21. Rac1 {[%emt 0:02:18]} d4 {[%emt 0:08:52]} 22. b3 {[%emt 0:03:06]} Qb4 {[%emt 0:00:01]} 23. Nb1 {[%emt 0:01:34]} Qd6 {[%emt 0:00:24]} 24. Rfe1 {[%emt 0:06:43]} Rc8 {[%emt 0:02:08]} 25. a3 {[%emt 0:01:43]} Rc7 {[%emt 0:01:12]} 26. Qd3 {[%emt 0:01:06]} Kc8 {[%emt 0:01:42]} 27. b4 {[%emt 0:02:15]} Na7 {[%emt 0:03:42]} 28. Bf3 {[%emt 0:04:58]} Rxc1 {[%emt 0:01:13]} 29. Rxc1+ {[%emt 0:00:20]} Kb8 {[%emt 0:00:02]} 30. Rd1 {[%emt 0:14:48]} Bb5 {[%emt 0:04:41]} 31. Qb3 {[%emt 0:00:53]} Rc8 {[%emt 0:00:00]} 32. a4 {[%emt 0:01:27]} Bc4 {[%emt 0:00:00]} 33. Qb2 {[%emt 0:00:20]} Bd5 {[%emt 0:00:00]} 34. Bxd5 {[%emt 0:00:42]} Qxd5+ {[%emt 0:00:00]} 35. Kg1 {[%emt 0:00:01]} e5 {[%emt 0:00:00]} 36. Na3 {[%emt 0:02:10]} e4 {[%emt 0:00:00]} 37. b5 {[%emt 0:00:01]} axb5 {[%emt 0:00:54]} 38. Nxb5 {[%emt 0:00:27]} Nxb5 39. axb5 {[%emt 0:00:01]} Bf8 {[%emt 0:01:58]} 40. Ra1 {[%emt 0:00:00]} b6 {[%emt 0:00:00]} 41. Bb4 {[%emt 0:02:38]} Bxb4 {[%emt 0:14:06]} 42. Qxb4 {[%emt 0:00:02]} d3 {[%emt 0:00:13]} 43. Qa4 {[%emt 0:00:23]} Rc7 {[%emt 0:01:30]} 44. Kg2 {[%emt 0:06:33]} e3+ {[%emt 0:03:04]} 45. Kg3 {[%emt 0:00:26]} d2 {[%emt 0:01:47]} 46. Qa6 {[%emt 0:00:30]} e2 {[%emt 0:03:15]} 47. Qxb6+ {[%emt 0:00:47]} Rb7 {[%emt 0:00:34]} 48. Qa5 {[%emt 0:51:23]} d1=Q {[%emt 0:03:34]} 0-1